Cogmind - Beta 13 @@@ ROGUE MODE // 2024.07.27 @ 00:10:28 Player: Sionnis Result: Destroyed by Combat Programmer with EMDS Performance ------------- Evolutions (9) 4500 Regions Visited (24) 4800 Robots Destroyed (391) 1955 Value Destroyed (16689) 16689 Prototype IDs (56) 1120 Alien Tech Used (0) 0 Bonus (17754) 17754 TOTAL SCORE: 46818 Bonus ------- High Alert Combat Kills 5265 Follower Combat Kills 6306 Entered Garrisons 1600 Used RIF Installer 5500 Aligned with FarCom 300 Friendly Fire -1217 Cogmind --------- Core Integrity 0/1600 Matter 285/300 Energy 5/100 System Corruption 29% Temperature Warm (100) Movement Core (1550) Ox30 Location -1/Command Parts ------- > --- POWER (3) -------- (None) > --- PROPULSION (4) --- (None) > --- UTILITY (15) ----- Huge Storage Unit Advanced Targeting Computer Improved System Shield Relay Coupler [Sentry] (21) > --- WEAPON (3) ------- Enhanced Nova Cannon > --- INVENTORY (25) --- Experimental Energy Well (600) Experimental Energy Well (600) Relay Coupler [Specialist] (38) Advanced Component Analysis Suite High-powered Tractor Beam HERF Cannon Enhanced Nova Cannon Enhanced Nova Cannon Advanced Remote Datajack Advanced Remote Datajack Advanced Remote Datajack Peak State ------------ > --- POWER ------------ Reinforced Antimatter Reactor Quantum Reactor Quantum Reactor > --- PROPULSION ------- Centrium Wheel Centrium Wheel Centrium Wheel Centrium Wheel > --- UTILITY ---------- Advanced Heat Sink Advanced Heat Sink Experimental Heat Sink Huge Storage Unit Advanced Targeting Computer Precision Energy Filter Quantum Capacitor Centrium Medium Armor Plating Centrium Medium Armor Plating Relay Coupler [NC] Relay Coupler [C] Relay Coupler [C] Relay Coupler [C] Relay Coupler [Sentry] > --- WEAPON ----------- Enhanced Nova Cannon Hellfire Missile Launcher Advanced Remote Datajack > --- INVENTORY -------- Quantum Reactor Quantum Reactor Centrium Wheel Centrium Wheel Experimental Energy Well Experimental Energy Well Quantum Capacitor Centrium Medium Armor Plating Graphene Brace Improved Remote Force Field Antimissile System Relay Coupler [Specialist] Advanced Component Analysis Suite Advanced System Restoration Module High-powered Tractor Beam HERF Cannon Enhanced Nova Cannon Enhanced Nova Cannon Advanced Remote Datajack Advanced Remote Datajack Advanced Remote Datajack [Rating: 184] Favorites ----------- Power Particle Reactor Engine Cooled Ion Engine Power Core Reinforced Fission Core Reactor Particle Reactor Propulsion Centrium Wheel Treads Improved Treads Wheel Centrium Wheel Utility Hacking Suite Device Advanced Heat Sink Storage Huge Storage Unit Processor Core Analyzer Hackware Hacking Suite Protection Hardened Light Armor Plating Weapon Enhanced Autogun Energy Gun Precision Beam Rifle Energy Cannon Enhanced Nova Cannon Ballistic Gun Enhanced Autogun Ballistic Cannon Antimatter Cannon Launcher Hellfire Missile Launcher Special Weapon Advanced Remote Datajack Impact Weapon Heavy Mace Special Melee Weapon Datajack Build | -11 -10 -9 -9 -9 -8 -8 -8 -8 -8 -7 -7 -7 -7 -6 -6 -5 -5 -4 -4 -3 -3 -2 -1 -1 ------- Run | Yrd Mat Mat Min Exi Min Mat Gar Mat Gar Fac Gar Fac Gar Fac Gar Fac Gar Fac Gar Res Gar Res Acc Com Slots Evolved 18 | . . 2 . . . 2 . . . 2 . . . 2 . 2 . 2 . 2 . 2 2 . Power 2 | . . . . . . . . . . . . . . . . . . . . 1 . 1 . . Propulsion 2 | . . 1 . . . . . . . . . . . . . . . 1 . . . . . . Utility 13 | . . 1 . . . 1 . . . 2 . . . 2 . 2 . 1 . 1 . 1 2 . Weapon 1 | . . . . . . 1 . . . . . . . . . . . . . . . . . . Parts Attached 531 | 6 11 29 3 1 . 33 45 30 26 22 39 28 20 8 36 5 49 27 21 18 14 25 21 14 Power 34 | 1 2 5 . . . 2 3 . . 1 1 2 3 . 1 . 2 1 . 1 4 2 1 2 Engine 13 | 1 1 5 . . . 2 1 . . 1 1 1 . . . . . . . . . . . . Core 4 | . 1 . . . . . 2 . . . . 1 . . . . . . . . . . . . Reactor 17 | . . . . . . . . . . . . . 3 . 1 . 2 1 . 1 4 2 1 2 Propulsion 57 | 2 1 10 . 1 . 5 5 5 1 . 6 4 . . 1 . 5 6 . . . 1 2 2 Treads 22 | 2 1 10 . 1 . 5 1 . . . 2 . . . . . . . . . . . . . Leg . | . . . . . . . . . . . . . . . . . . . . . . . . . Wheel 35 | . . . . . . . 4 5 1 . 4 4 . . 1 . 5 6 . . . 1 2 2 Hover . | . . . . . . . . . . . . . . . . . . . . . . . . . Flight . | . . . . . . . . . . . . . . . . . . . . . . . . . Utility 233 | 1 4 5 1 . . 9 15 11 6 11 10 8 10 4 20 5 24 17 14 15 4 19 13 7 Device 86 | . 1 1 . . . 6 7 . 1 6 3 1 1 1 2 1 3 9 5 11 1 14 7 5 Storage 9 | 1 2 2 . . . . 1 1 . 1 . . . . . . 1 . . . . . . . Processor 13 | . 1 . . . . 2 3 2 . . 2 . 1 . . . . 1 . . . 1 . . Hackware 69 | . . . . . . . 2 3 1 2 1 2 6 2 11 2 17 4 6 2 3 1 3 1 Protection 56 | . . 2 1 . . 1 2 5 4 2 4 5 2 1 7 2 3 3 3 2 . 3 3 1 Artifact . | . . . . . . . . . . . . . . . . . . . . . . . . . Weapon 207 | 2 4 9 2 . . 17 22 14 19 10 22 14 7 4 14 . 18 3 7 2 6 3 5 3 Energy Gun 17 | . . 2 2 . . 1 . 4 4 1 2 . . . . . . . . . 1 . . . Energy Cannon 22 | . 1 . . . . 2 8 . 4 . . . . . . . 1 . . . 2 . 2 2 Ballistic Gun 67 | 2 1 5 . . . 10 11 5 5 5 9 9 2 2 1 . . . . . . . . . Ballistic Cannon 36 | . 2 1 . . . 2 2 . . 1 3 1 . 1 7 . 9 2 2 . 3 . . . Launcher 14 | . . 1 . . . 1 . 1 3 1 3 . . . . . . . . . . 3 1 . Special Weapon 35 | . . . . . . . . . . . 3 2 4 1 6 . 8 1 5 2 . . 2 1 Impact Weapon 12 | . . . . . . 1 . 2 3 1 2 2 1 . . . . . . . . . . . Slashing Weapon . | . . . . . . . . . . . . . . . . . . . . . . . . . Piercing Weapon . | . . . . . . . . . . . . . . . . . . . . . . . . . Special Melee Weapon 4 | . . . . . . . 1 2 . 1 . . . . . . . . . . . . . . Unidentified Prototypes 14 | . . 2 . . . 4 . 3 . 1 . 1 . 1 . . . 1 . 1 . . . . Corrupted Parts 1 | . . . . . . . . . . . . . . . . . 1 . . . . . . . System Corruption 4 | . . . . . . . . . . . . . . . . . 4 . . . . . . . Parts Lost 65 | . . 1 1 . . 1 7 1 3 . 8 . . 1 1 . 1 1 3 . 1 . 9 26 Power 5 | . . . . . . . . . . . . . . . . . . . . . . . 1 4 Propulsion 14 | . . . . . . . 2 . 1 . 2 . . . 1 . 1 . . . . . 1 6 Utility 31 | . . . 1 . . 1 3 1 2 . 3 . . . . . . . 1 . . . 7 12 Weapon 15 | . . 1 . . . . 2 . . . 3 . . 1 . . . 1 2 . 1 . . 4 Highest Loss Streak 25 | . . 1 1 . . 1 3 1 1 . 6 . . 1 1 . 1 1 2 . 1 . 3 25 To Critical Strikes . | . . . . . . . . . . . . . . . . . . . . . . . . . Average Slot Usage (%) 93 | . 98 97 99 100 100 99 99 91 87 91 86 91 91 89 91 93 94 90 92 94 96 95 93 86 Engine 4 | . 7 9 11 11 11 9 8 . . 3 7 6 5 . . . . . . . . . . . Core 1 | . 6 1 . . . . . 9 9 3 . . . . . . . . . . . . . . Reactor 2 | . . . . . . . . . . . . . 1 6 6 5 5 5 5 9 9 13 11 8 Treads 8 | . 27 32 33 33 33 27 15 . . . 4 . . . . . . . . . . . . . Wheel 11 | . . . . . . . 11 21 15 15 5 15 15 13 12 11 14 18 21 19 19 17 16 14 Device 7 | . 2 . . . . 8 12 . 6 7 11 . . 6 1 11 10 10 8 8 9 17 20 23 Storage 7 | . 14 11 11 11 11 9 9 9 9 7 7 7 7 6 6 5 5 5 5 4 4 4 4 4 Processor 5 | . 11 11 11 11 11 8 2 9 9 7 7 7 7 6 3 . . . . . . 3 4 4 Hackware 15 | . . . . . . . 2 7 2 15 10 22 22 26 34 30 36 32 33 37 36 21 16 14 Protection 6 | . . 9 10 11 11 9 8 8 9 6 6 5 7 2 5 9 2 1 7 4 4 3 7 7 Energy Gun 2 | . . 2 5 11 11 4 . 7 6 6 . . . . . . . . . . . . . . Energy Cannon 1 | . 7 . . . . . 5 . 2 . . . . . . . . 4 . . 2 4 5 3 Ballistic Gun 9 | . 7 12 16 11 11 16 21 16 15 12 9 18 6 4 . . . . . . . . . . Ballistic Cannon 4 | . 12 7 . . . 4 . . . . 9 3 . 1 10 11 8 5 5 4 3 . . . Special Weapon 2 | . . . . . . . . . . . 1 . 11 5 8 5 7 4 4 4 4 4 4 4 Naked Turns . | . . . . . . . . . . . . . . . . . . . . . . . . . Heaviest Build 218 | 11 31 58 59 59 59 74 85 85 86 117 129 129 109 117 147 155 153 154 158 167 184 209 218 207 Greatest Support 75 | 40 40 69 69 69 69 69 66 40 40 40 75 75 44 44 44 28 40 64 64 64 64 64 64 64 Greatest Overweight (x) 10 | . 1 1 . . . 1 3 3 3 2 10 4 2 2 6 5 10 5 2 2 2 3 4 9 Average Overweight (x) 1 | . . . . . . . 1 1 1 1 1 2 2 2 3 5 3 2 2 2 2 2 2 3 Largest Inventory Capacity 25 | 8 15 20 20 20 20 20 20 20 20 25 25 25 25 25 25 25 25 25 25 25 25 25 25 25 Average Capacity 22 | 6 13 16 20 20 20 20 20 20 20 24 25 25 25 25 25 25 25 25 25 25 25 25 25 25 Most Carried 25 | 3 15 20 19 20 20 20 20 20 20 25 25 25 25 24 25 22 25 25 24 25 25 24 24 20 Average Carried 20 | 1 11 15 18 19 20 19 18 19 17 21 21 24 24 22 23 20 23 23 20 21 23 22 22 18 Final Capacity 25 | 8 15 20 20 20 20 20 20 20 20 25 25 25 25 25 25 25 25 25 25 25 25 25 25 25 Final Carried 25 | 3 14 19 18 20 20 20 20 20 16 25 25 24 25 23 23 21 25 22 20 25 21 23 21 11 Class Distribution -------------------- 19% | Botlord-Skirmisher 18% | Botlord-Tank 17% | Mutant 11% | Tank 7% | Bothacker-Skirmisher 4% | Botlord-Mutant 3% | Botlord-Gunner 3% | Bothacker-Mutant 3% | Gunner Dominant Class ---------------- Mutant | -10/Materials Mutant | -9/Materials Mutant | -9/Mines Mutant | -9/Exiles Mutant | -8/Mines Tank | -8/Materials Tank | -8/Garrison Bothacker-Skirmisher | -8/Materials Bothacker-Skirmisher | -8/Garrison Hacker-Gunner | -7/Factory Gunner | -7/Garrison Botlord-Skirmisher | -7/Factory Botlord-Mutant | -7/Garrison Botlord-Mutant | -6/Factory Botlord-Skirmisher | -6/Garrison Botlord-Tank | -5/Factory Botlord-Skirmisher | -5/Garrison Botlord-Skirmisher | -4/Factory Botlord-Tank | -4/Garrison Botlord-Tank | -3/Research Botlord-Tank | -3/Garrison Botlord-Gunner | -2/Research Botlord-Tank | -1/Access Botlord-Tank | -1/Command Resources | -11 -10 -9 -9 -9 -8 -8 -8 -8 -8 -7 -7 -7 -7 -6 -6 -5 -5 -4 -4 -3 -3 -2 -1 -1 ----------- Run | Yrd Mat Mat Min Exi Min Mat Gar Mat Gar Fac Gar Fac Gar Fac Gar Fac Gar Fac Gar Res Gar Res Acc Com Matter Collected 17136 | 220 520 981 244 . 10 1030 1552 955 773 471 1615 1310 429 129 829 172 1339 603 735 964 629 660 571 395 Remotely 441 | . . 96 . . . . 57 . . . . 60 . . . . . . . . . 228 . . Salvage Created 15605 | . 749 1081 88 . 21 1366 2049 858 1219 573 1462 1636 248 43 55 104 444 249 227 227 117 896 1593 300 Parts 839 | . 43 63 14 . 2 76 102 48 59 39 80 83 13 1 8 3 19 9 17 13 12 39 77 19 Haulers Intercepted 14 | . 1 5 . . . 4 . 1 . 1 . 1 . . . 1 . . . . . . . . Recyclers Shooed 3 | . . 1 . . . 1 . . . . . . . . . . . . . . . . 1 . Parts Field Recycled . | . . . . . . . . . . . . . . . . . . . . . . . . . Retrieved Matter . | . . . . . . . . . . . . . . . . . . . . . . . . . Parts Self-Destructed . | . . . . . . . . . . . . . . . . . . . . . . . . . Prevented . | . . . . . . . . . . . . . . . . . . . . . . . . . Kills | -11 -10 -9 -9 -9 -8 -8 -8 -8 -8 -7 -7 -7 -7 -6 -6 -5 -5 -4 -4 -3 -3 -2 -1 -1 ------- Run | Yrd Mat Mat Min Exi Min Mat Gar Mat Gar Fac Gar Fac Gar Fac Gar Fac Gar Fac Gar Res Gar Res Acc Com Combat Hostiles Destroyed 313 | . 15 28 7 . . 25 35 16 29 9 41 31 5 1 7 . 11 1 4 4 3 15 22 4 Melee 3 | . . . . . . . . 1 . . . . . . 1 . . . . . 1 . . . Guns 144 | . 2 14 7 . . 15 21 10 17 8 21 25 3 1 . . . . . . . . . . Cannons 127 | . 13 11 . . . 7 14 . 9 . 12 6 . . 6 . 11 1 4 4 2 8 16 3 AOE 31 | . . 3 . . . 3 . 3 3 . 8 . 1 . . . . . . . . 6 4 . Classes Destroyed 21 | . 8 2 . . . 3 3 . . 1 1 . . . 1 . . . . . . 1 1 . Worker 14 | . 1 . 1 . 1 . . 3 . . . . . . . . . . . . . 5 3 . Builder 9 | . . . . . . 1 . 1 . . . . . . . . . 1 . . . 3 3 . Tunneler 2 | . . . . . . . . . . 1 . . . . . . . . . . . . 1 . Hauler 14 | . 1 5 . . . 4 . 1 . 1 . 1 . . . 1 . . . . . . . . Recycler 12 | . 2 1 . . . 3 . . . . . 3 . . . . . 1 . . . . 2 . Mechanic 1 | . 1 . . . . . . . . . . . . . . . . . . . . . . . Operator 4 | . 1 . . . . 1 . 1 . . . . . . . 1 . . . . . . . . Watcher 18 | . 3 2 . . . 5 . 2 . 2 . . . . . . . 1 . 1 . . 1 1 Swarmer 75 | . 3 10 7 . . 8 . 5 7 2 16 6 1 . 2 . 1 . . . . 2 5 . Cutter 4 | . . . . . . . 2 . . . . . . . 2 . . . . . . . . . Saboteur 4 | . . . . . . . . . . . . . . . 1 . 2 . . . 1 . . . Grunt 116 | . 12 8 . . . 11 20 4 12 2 18 15 2 . 1 . 2 . . 1 . 3 5 . Brawler 8 | . . . . . . 1 . . 2 . 1 3 . 1 . . . . . . . . . . Duelist 4 | . . 2 . . . . . . 1 . . . . . . . . . . . . 1 . . Sentry 43 | . . 8 . . . 4 9 4 6 3 3 2 2 . . . 2 . . . . . . . Demolisher 2 | . . . . . . . . . . . . . . . . . . . . . . 2 . . Specialist 1 | . . . . . . . . . . . 1 . . . . . . . . . . . . . Hunter 14 | . . . . . . 1 . 3 1 . 1 1 . . . . . . 1 . . 3 3 . Programmer 43 | . . . . . . . 3 . . 2 2 4 . . . . 4 1 3 3 2 6 9 4 Heavy 1 | . . . . . . . . . . . . . . . . . . . . . . . 1 . Behemoth 2 | . . . . . . . 1 . . . . . . . 1 . . . . . . . . . Best Kill Streak 12 | . 7 8 3 . 1 9 6 5 8 4 9 9 2 1 4 1 2 1 1 2 2 12 7 2 Combat Bots Only 9 | . 7 6 3 . . 7 6 3 8 3 9 9 2 1 4 . 2 1 1 2 2 6 5 2 Max Kills in Single Turn 4 | . 1 2 1 . 1 2 1 3 2 2 4 1 1 1 1 1 1 1 1 1 1 3 2 1 Gunslinging . | . . . . . . . . . . . . . . . . . . . . . . . . . Exploded 4 | . . 2 . . . 1 . 3 2 . 4 . 1 . . . . . . . . 2 1 . Melee 1 | . . . . . . . . 1 . . . . . . 1 . . . . . 1 . . . Uniques/NPCs Destroyed . | . . . . . . . . . . . . . . . . . . . . . . . . . Combat | -11 -10 -9 -9 -9 -8 -8 -8 -8 -8 -7 -7 -7 -7 -6 -6 -5 -5 -4 -4 -3 -3 -2 -1 -1 -------- Run | Yrd Mat Mat Min Exi Min Mat Gar Mat Gar Fac Gar Fac Gar Fac Gar Fac Gar Fac Gar Res Gar Res Acc Com Hostile Shots Fired 1529 | . 49 113 28 . . 91 121 45 62 91 260 115 57 6 30 5 48 13 57 5 21 54 153 105 Missed 410 | . 11 35 12 . . 22 31 12 15 33 63 33 17 2 7 1 17 8 12 . 4 17 40 18 Intercepted 11 | . . . . . . . . . . . . . . . . . . . . 3 . 3 . 5 Damage Taken 19781 | . 385 1009 130 . . 892 1227 691 733 518 1846 1452 380 106 295 37 434 320 1230 246 236 800 2260 4554 Core 3413 | . 56 103 10 . . 241 116 41 111 51 205 226 56 15 25 . 102 51 275 . 54 47 318 1310 Absorbed by Shields 2985 | . . . . . . 309 160 . . . 287 . . . 13 38 455 96 159 47 196 294 716 215 Ignored by Resistances 21 | . . . . . . . . 14 7 . . . . . . . . . . . . . . . Regen/Repaired (Parts) 1497 | . 70 91 . . . 21 . 147 . 380 . . . . . . . . . 269 56 . 463 . Core Remaining (%) 72 | 100 77 . . . 71 . . . 7 . . . 23 . 95 . 89 . 71 . 95 96 . . Volleys Fired 1480 | . 43 85 17 . . 90 175 35 84 31 102 74 29 8 65 20 131 51 68 52 51 73 143 53 Largest 3 | . 2 2 2 . . 3 3 3 3 3 3 3 3 2 3 2 3 2 1 1 2 1 1 1 Hottest 174 | . 95 75 43 . . 151 120 121 120 114 174 138 81 56 120 80 120 153 75 75 120 120 120 120 Shots Fired 2479 | . 87 168 34 . . 222 351 90 162 94 243 211 48 11 78 23 161 52 69 52 55 73 143 52 Gun 1286 | . 11 101 34 . . 173 276 84 123 94 179 169 33 9 . . . . . . . . . . Cannon 855 | . 76 65 . . . 46 75 5 35 . 56 36 . . 53 7 94 24 39 19 31 50 94 50 Launcher 27 | . . 2 . . . 3 . 1 4 . 5 . . . . . . . . . . 7 5 . Special 311 | . . . . . . . . . . . 3 6 15 2 25 16 67 28 30 33 24 16 44 2 Kinetic 1605 | . 54 148 34 . . 177 276 67 83 62 217 205 33 9 53 7 94 1 39 19 27 . . . Thermal 541 | . 33 18 . . . 42 75 11 75 32 20 . . . . . 31 23 . . 4 50 77 50 Explosive 27 | . . 2 . . . 3 . 1 4 . 5 . . . . . . . . . . 7 5 . Electromagnetic 28 | . . . . . . . . 11 . . . . . . . . . . . . . . 17 . Robot Hit Streak 74 | . 12 14 4 . . 11 74 8 14 15 11 18 9 9 22 6 24 10 6 13 18 11 17 10 Robot Miss Streak 12 | . 3 3 4 . . 9 4 5 2 5 12 3 2 3 3 2 4 8 2 2 1 7 3 2 Penetration Max 1 | . . . . . . . . . . . . . . . . . . . . . 1 . . . Secondary Targets 22 | . . . 2 . . 3 5 . 3 . 6 3 . . . . . . . . . . . . Max Gunslinging Chain 1 | . . . 1 . . 1 1 . 1 . 1 1 . . . . . . . . . . . . Capacitor 218 | . . . . . . . . . . . . . . . . . . 22 . . 4 50 94 48 Shots Hit Robots 1520 | . 54 115 19 . . 134 221 62 78 62 135 143 34 9 37 14 101 31 34 44 30 43 90 30 Core Hits 689 | . 28 50 7 . 1 90 93 34 46 28 94 73 5 6 8 2 23 3 4 5 3 40 40 6 Critical Kills 12 | . . . . . . . 2 . 1 . 5 1 1 . . . . . . . . 1 . 1 Critical Parts Destroyed 14 | . . . . . . 1 2 4 . . 5 2 . . . . . . . . . . . . Critical Strikes 60 | . 2 5 . . . 3 4 6 7 3 16 5 1 . . . 3 . 2 1 . 1 . 1 Burn 12 | . . . . . . . . 1 6 3 2 . . . . . . . . . . . . . Meltdown 2 | . . . . . . . . . . . . . . . . . . . . . . 1 . 1 Destroy 24 | . . . . . . 1 4 2 1 . 12 3 1 . . . . . . . . . . . Blast 18 | . 2 5 . . . 2 . . . . 2 2 . . . . 2 . 2 1 . . . . Smash 3 | . . . . . . . . 3 . . . . . . . . . . . . . . . . Sever 1 | . . . . . . . . . . . . . . . . . 1 . . . . . . . Melee Attacks 96 | . . . . . . . 2 21 19 12 18 7 17 . . . . . . . . . . . Impact 80 | . . . . . . . . 15 19 4 18 7 17 . . . . . . . . . . . Slashing . | . . . . . . . . . . . . . . . . . . . . . . . . . Piercing . | . . . . . . . . . . . . . . . . . . . . . . . . . Sneak Attacks 16 | . . . . . . . . 6 . 8 . . 2 . . . . . . . . . . . Combat Hostiles 2 | . . . . . . . . . . . . . 2 . . . . . . . . . . . Follow-up Attacks . | . . . . . . . . . . . . . . . . . . . . . . . . . Damage Inflicted 37540 | . 987 2104 291 . 19 2677 4380 1555 2513 944 3178 3255 552 126 572 117 1864 329 760 994 867 3878 3978 1600 Guns 13974 | . 124 976 286 . . 1840 2921 820 1371 944 1797 2403 366 126 . . . . . . . . . . Cannons 16444 | . 859 859 . . . 592 1459 44 896 . 750 592 . . 572 117 1550 329 760 994 867 1436 2168 1600 Explosions 6163 | . . 260 . . . 245 . 269 246 . 631 260 . . . . . . . . . 2442 1810 . Melee 586 | . . . . . . . . 400 . . . . 186 . . . . . . . . . . . Ramming 59 | . 4 9 5 . 19 . . 22 . . . . . . . . . . . . . . . . Kinetic 19836 | . 566 1693 286 . . 1762 2921 601 789 516 2308 2995 366 126 572 117 1550 47 760 994 867 . . . Thermal 10616 | . 417 142 . . . 670 1459 140 1478 428 239 260 . . . . 314 282 . . . 1436 1751 1600 Explosive 5850 | . . 260 . . . 245 . 216 246 . 631 . . . . . . . . . . 2442 1810 . Electromagnetic 593 | . . . . . . . . 176 . . . . . . . . . . . . . . 417 . Impact 586 | . . . . . . . . 400 . . . . 186 . . . . . . . . . . . Slashing . | . . . . . . . . . . . . . . . . . . . . . . . . . Piercing . | . . . . . . . . . . . . . . . . . . . . . . . . . Highest Corruption 25 | . 3 . . . . 4 9 11 12 2 3 4 5 . . . 6 . 2 . 2 3 13 25 Average Corruption 5 | . 2 . . . . 4 8 10 11 1 2 3 4 . . . 1 . 1 . 2 2 10 7 Corruption Purged 14 | . . . . . . . . . . . . . . . . . . . 4 . . 2 . 8 Corruption Blocked . | . . . . . . . . . . . . . . . . . . . . . . . . . Effects 431 | . 20 . . . . 50 87 62 44 9 33 35 25 . . . 3 . 7 . 16 4 24 12 Message Errors 112 | . 3 . . . . 14 19 14 11 4 11 12 8 . . . . . 2 . 5 1 4 4 Matter Fused 89 | . 3 . . . . 11 12 14 14 2 9 7 6 . . . 1 . 1 . 1 1 3 4 Heat Flow Errors 47 | . 6 . . . . 5 12 5 2 . 2 3 4 . . . . . 1 . 1 . 4 2 Energy Discharges 55 | . 2 . . . . 4 8 11 4 1 5 3 3 . . . 2 . 1 . 5 . 6 . Parts Rejected 4 | . . . . . . . 1 . 1 . 2 . . . . . . . . . . . . . Parts Fused 2 | . 1 . . . . . . . 1 . . . . . . . . . . . . . . . Data Loss (minor) 55 | . 1 . . . . 10 15 6 8 . 1 4 1 . . . . . 1 . 2 1 5 . Data Loss (major) 17 | . 1 . . . . . 6 2 1 1 . 2 3 . . . . . . . . . 1 . Misfires 21 | . 1 . . . . 5 2 4 1 1 2 2 . . . . . . 1 . 2 . . . Alerts 7 | . 2 . . . . . . 2 . . . 1 . . . . . . . . . 1 . 1 Misdirections 1 | . . . . . . . . . . . . . . . . . . . . . . . 1 . Weapon Failures 21 | . . . . . . 1 12 4 1 . 1 1 . . . . . . . . . . . 1 Overload Shots . | . . . . . . . . . . . . . . . . . . . . . . . . . Overflow Damage 1350 | . 22 . . . . 39 6 220 13 . 50 63 96 . 5 5 80 32 38 39 102 96 259 185 Projectiles 649 | . 22 . . . . 4 6 . . . 23 14 . . 5 5 80 32 38 39 102 4 90 185 Explosions 385 | . . . . . . 35 . . 13 . 27 49 . . . . . . . . . 92 169 . Melee 316 | . . . . . . . . 220 . . . . 96 . . . . . . . . . . . Knockbacks 66 | . 10 9 . . . 3 . 1 . . 6 3 . . 2 1 9 . 3 8 11 . . . Impact . | . . . . . . . . . . . . . . . . . . . . . . . . . Kinetic 56 | . 8 9 . . . 3 . 1 . . 6 3 . . 1 1 8 . 2 7 7 . . . Secondary 10 | . 2 . . . . . . . . . . . . . 1 . 1 . 1 1 4 . . . Self-Inflicted Damage 381 | . . 26 . . . 49 . 11 26 . 53 202 . . . . . . . . . 14 . . Shots 8 | . . 1 . . . 1 . . 1 . 1 3 . . . . . . . . . 1 . . Rammed 11 | . 2 4 1 . 3 . . 1 . . . . . . . . . . . . . . . . Targets Rammed 12 | . 2 4 2 . 3 . . 1 . . . . . . . . . . . . . . . . Kicked . | . . . . . . . . . . . . . . . . . . . . . . . . . Crushed 1 | . . . 1 . . . . . . . . . . . . . . . . . . . . . Highest Temperature 620 | . 356 133 4 . . 561 478 272 449 399 620 348 252 . 39 24 85 321 127 62 196 420 511 301 Average Temperature 107 | . 113 32 1 . . 126 124 64 139 144 132 93 72 . 14 16 20 112 49 25 42 152 132 114 Received Heat Transfer 3260 | . 183 261 . . . 296 523 153 351 147 322 492 168 . 120 16 43 8 80 31 8 20 38 . Effects 56 | . 1 . . . . 10 6 . 3 7 8 9 . . . . . 2 . . . 6 3 1 Shutdowns 7 | . . . . . . 1 1 . 1 . 2 . . . . . . . . . . . 2 . Energy Bleed 14 | . . . . . . 2 2 . 1 2 2 2 . . . . . . . . . 2 . 1 Interference 22 | . . . . . . 4 2 . . 5 2 6 . . . . . . . . . 2 1 . Matter Decay 5 | . . . . . . . . . 1 . . 1 . . . . . 1 . . . 2 . . Short Circuit 3 | . 1 . . . . . . . . . 2 . . . . . . . . . . . . . Damage (minor) 3 | . . . . . . 1 1 . . . . . . . . . . 1 . . . . . . Damage (core) 2 | . . . . . . 2 . . . . . . . . . . . . . . . . . . Siege Activations . | . . . . . . . . . . . . . . . . . . . . . . . . . Robots Corrupted 2 | . . . . . . . . . . . . . . . . . . . . . . . 2 . Combat Hostiles 2 | . . . . . . . . . . . . . . . . . . . . . . . 2 . Parts Fried 10 | . . . . . . . . 2 . . . . 1 . . . . 3 . . . . 4 . Impact Corruptions 12 | . . . . . . . . 6 . . . . 2 . . . . . 1 . 3 . . . Robots Melted 3 | . . . . . . . . . . 1 . . . . . . . . . . . 1 . 1 Combat Hostiles 3 | . . . . . . . . . . 1 . . . . . . . . . . . 1 . 1 Parts Melted 29 | . . . . . . 4 1 . 6 2 . . . . 1 . . . . . . 2 8 5 Heat Transferred 15924 | . 851 325 . . . 1177 2997 309 3625 1110 592 150 . . . . 1073 259 . . . 1127 1443 886 Parts Sabotaged 8 | . . . . . . . . . . . . . . . . . 8 . . . . . . . Parts Stolen . | . . . . . . . . . . . . . . . . . . . . . . . . . Parts Stripped . | . . . . . . . . . . . . . . . . . . . . . . . . . Power Chain Reactions 1 | . . . . . . . . 1 . . . . . . . . . . . . . . . . Alert | -11 -10 -9 -9 -9 -8 -8 -8 -8 -8 -7 -7 -7 -7 -6 -6 -5 -5 -4 -4 -3 -3 -2 -1 -1 ------- Run | Yrd Mat Mat Min Exi Min Mat Gar Mat Gar Fac Gar Fac Gar Fac Gar Fac Gar Fac Gar Res Gar Res Acc Com Peak Influence 1721 | . 289 540 342 . 5 329 1377 816 1167 725 1628 1425 1375 867 1478 765 1616 896 890 559 1004 1721 1234 795 Initial 938 | . . 74 147 . . 1 75 670 235 612 107 854 742 721 606 765 406 848 116 500 301 564 938 771 Average 658 | . 104 411 178 . . 186 695 659 669 308 949 1055 972 781 1100 465 917 297 572 447 682 1168 1057 692 Maximum Alert Level 5 | . 1 2 1 . . 1 4 3 4 3 5 4 4 3 4 3 5 3 3 2 3 5 4 3 Low Security (%) 15 | 100 84 7 60 . 100 46 4 . . 52 6 . . . . . . 54 3 . . . . . Level 1 14 | . 15 23 39 . . 53 14 12 20 3 7 . . . . 30 . 22 28 33 18 . . 4 Level 2 23 | . . 68 . . . . 33 45 42 36 4 . . . 12 56 31 . 33 66 29 19 . 38 Level 3 31 | . . . . . . . 26 41 35 7 45 73 85 100 48 13 42 22 34 . 51 6 60 57 Level 4 13 | . . . . . . . 20 . 2 . 31 26 14 . 38 . 24 . . . . 71 39 . Level 5 . | . . . . . . . . . . . 5 . . . . . 2 . . . . 2 . . High Security . | . . . . . . . . . . . . . . . . . . . . . . . . . Max Security . | . . . . . . . . . . . . . . . . . . . . . . . . . Squads Dispatched 72 | . 3 3 . . . 2 . 2 . 8 . 12 . 2 . 6 . 3 . 9 . 10 11 1 Investigation 16 | . 2 2 . . . 1 . 1 . 4 . 2 . . . 2 . . . . . . 2 . Extermination 16 | . . . . . . . . . . 2 . 4 . . . . . 1 . 4 . 2 2 1 Reinforcement 18 | . 1 1 . . . 1 . 1 . 1 . 3 . 1 . 1 . 1 . 1 . 3 3 . Assault 12 | . . . . . . . . . . . . 3 . . . . . . . 1 . 5 3 . Garrison 10 | . . . . . . . . . . 1 . . . 1 . 3 . 1 . 3 . . 1 . Intercept . | . . . . . . . . . . . . . . . . . . . . . . . . . Searches Triggered . | . . . . . . . . . . . . . . . . . . . . . . . . . Construction Impeded 2 | . . 1 . . . . . . . . . 1 . . . . . . . . . . . . Haulers Reinforced 4 | . . . . . . . . . . . . 1 . . . . . . . 1 . 1 1 . Active Scanning Responses . | . . . . . . . . . . . . . . . . . . . . . . . . . Cargo Convoy Interrupts . | . . . . . . . . . . . . . . . . . . . . . . . . . Stealth | -11 -10 -9 -9 -9 -8 -8 -8 -8 -8 -7 -7 -7 -7 -6 -6 -5 -5 -4 -4 -3 -3 -2 -1 -1 --------- Run | Yrd Mat Mat Min Exi Min Mat Gar Mat Gar Fac Gar Fac Gar Fac Gar Fac Gar Fac Gar Res Gar Res Acc Com Distress Signals 12 | . . 3 . . . 3 . . . 1 . 1 . . . . . 1 . . 1 1 1 . Communications Jammed 387 | . . . . . . . . . . . . . . . . . . 74 . 21 16 69 192 15 Distress Signals 386 | . . . . . . . . . . . . . . . . . . 74 . 21 16 69 191 15 Times Spotted 620 | . 20 36 12 . . 33 27 25 22 14 35 40 25 7 32 11 45 21 37 33 25 52 57 11 Peak Tracking Total 10 | . 4 7 3 . . 6 6 4 4 2 7 6 6 5 5 2 4 3 6 7 3 10 8 4 Tactical Retreats 15 | . . 1 1 . . 1 2 . 2 1 1 2 . . 1 . . 1 . 1 . . 1 . Traps | -11 -10 -9 -9 -9 -8 -8 -8 -8 -8 -7 -7 -7 -7 -6 -6 -5 -5 -4 -4 -3 -3 -2 -1 -1 ------- Run | Yrd Mat Mat Min Exi Min Mat Gar Mat Gar Fac Gar Fac Gar Fac Gar Fac Gar Fac Gar Res Gar Res Acc Com Traps Triggered 62 | . 4 2 . . . 1 7 1 7 2 4 1 6 . 1 . 4 2 3 7 7 1 1 1 Indirectly . | . . . . . . . . . . . . . . . . . . . . . . . . . Trap Hack Attempts . | . . . . . . . . . . . . . . . . . . . . . . . . . Triggered . | . . . . . . . . . . . . . . . . . . . . . . . . . Disarmed . | . . . . . . . . . . . . . . . . . . . . . . . . . Reprogrammed . | . . . . . . . . . . . . . . . . . . . . . . . . . Reused . | . . . . . . . . . . . . . . . . . . . . . . . . . Traps Extracted . | . . . . . . . . . . . . . . . . . . . . . . . . . Installed . | . . . . . . . . . . . . . . . . . . . . . . . . . Triggered . | . . . . . . . . . . . . . . . . . . . . . . . . . Machines | -11 -10 -9 -9 -9 -8 -8 -8 -8 -8 -7 -7 -7 -7 -6 -6 -5 -5 -4 -4 -3 -3 -2 -1 -1 ---------- Run | Yrd Mat Mat Min Exi Min Mat Gar Mat Gar Fac Gar Fac Gar Fac Gar Fac Gar Fac Gar Res Gar Res Acc Com Machines Disabled 54 | . . 3 . . . 2 2 2 7 . 1 8 . . 1 . 1 2 13 . 5 1 4 2 Max in Single Turn 5 | . . 1 . . . 1 1 1 1 . 1 5 . . 1 . 1 . 2 . 1 1 1 1 Garrison Access 2 | . . . . . . . . . . 1 . . . . . . . . . . . . 1 . Garrison Relay 24 | . . . . . . . . . . . 2 . 5 . 4 . 6 . 4 . 3 . . . Machines Repaired . | . . . . . . . . . . . . . . . . . . . . . . . . . Machines Dismantled 17 | . . . . . . . . . . . 1 . 5 . 4 . 6 . 1 . . . . . Machines Sabotaged . | . . . . . . . . . . . . . . . . . . . . . . . . . Overloaded Fab Kills . | . . . . . . . . . . . . . . . . . . . . . . . . . Hacking | -11 -10 -9 -9 -9 -8 -8 -8 -8 -8 -7 -7 -7 -7 -6 -6 -5 -5 -4 -4 -3 -3 -2 -1 -1 --------- Run | Yrd Mat Mat Min Exi Min Mat Gar Mat Gar Fac Gar Fac Gar Fac Gar Fac Gar Fac Gar Res Gar Res Acc Com Machines Accessed 87 | . 7 10 1 1 . 9 2 8 1 11 2 7 3 1 2 3 3 3 2 2 4 . 4 1 Terminals 54 | . 5 8 . . . 5 2 3 1 5 2 2 3 . 2 2 3 1 2 . 4 . 3 1 Fabricators 2 | . . . . . . . . . . 1 . 1 . . . . . . . . . . . . Repair Stations 9 | . 1 1 . . . 1 . 2 . 2 . 1 . . . . . . . 1 . . . . Recycling Units 5 | . 1 1 . . . 1 . . . . . 1 . . . . . 1 . . . . . . Scanalyzers 5 | . . . . . . 1 . 2 . 1 . 1 . . . . . . . . . . . . Garrison Access 10 | . . . . . . 1 . 1 . 2 . 1 . 1 . 1 . 1 . 1 . . 1 . Total Hacks 232 | . 22 38 1 1 . 22 4 24 2 31 3 18 6 2 5 8 5 5 4 11 7 . 11 2 Successful 133 | . 12 21 1 1 . 13 1 16 . 22 1 10 2 2 2 4 3 3 3 10 4 . 2 . Failed 99 | . 10 17 . . . 9 3 8 2 9 2 8 4 . 3 4 2 2 1 1 3 . 9 2 Catastrophic 12 | . . . . . . 3 . . . . . 2 2 . . 1 . . . . . . 4 . Database Lockouts . | . . . . . . . . . . . . . . . . . . . . . . . . . Manual 89 | . 15 22 . 1 . 15 . 6 . 9 . 7 1 . 1 4 . 3 1 . 2 . 2 . Terminals 143 | . 14 32 . . . 12 4 9 2 13 3 7 6 . 5 7 5 3 4 . 7 . 8 2 Fabricators 8 | . . . . . . . . . . 5 . 3 . . . . . . . . . . . . Repair Stations 35 | . 5 2 . . . 2 . 7 . 7 . 2 . . . . . . . 10 . . . . Recycling Units 15 | . 3 4 . . . 4 . . . . . 3 . . . . . 1 . . . . . . Scanalyzers 16 | . . . . . . 3 . 7 . 4 . 2 . . . . . . . . . . . . Garrison Access 13 | . . . . . . 1 . 1 . 2 . 1 . 2 . 1 . 1 . 1 . . 3 . Terminal Hacks 41 | . 3 12 1 1 . 3 1 1 . 3 1 . 2 . 2 1 3 . 3 . 4 . . . Part Schematic 2 | . . 2 . . . . . . . . . . . . . . . . . . . . . . Robot Analysis 4 | . 2 2 . . . . . . . . . . . . . . . . . . . . . . Open Door 6 | . . . 1 . . . . . . . . . 1 . 1 . 2 . . . 1 . . . Branch Access Points 1 | . . 1 . . . . . . . . . . . . . . . . . . . . . . Emergency Access Points 7 | . . . . . . . 1 . . . 1 . 1 . 1 . 1 . 1 . 1 . . . Terminal Index 4 | . . 1 . . . 1 . 1 . 1 . . . . . . . . . . . . . . Fabricator Index 1 | . . . . . . . . . . 1 . . . . . . . . . . . . . . Alert Level 1 | . . 1 . . . . . . . . . . . . . . . . . . . . . . Unreport Threat 3 | . . 1 . . . 1 . . . 1 . . . . . . . . . . . . . . Locate Traps 1 | . . 1 . . . . . . . . . . . . . . . . . . . . . . Hauler Manifests 5 | . 1 2 . . . 1 . . . . . . . . . 1 . . . . . . . . Zone Layout 1 | . . 1 . . . . . . . . . . . . . . . . . . . . . . Garrison Registry 2 | . . . . . . . . . . . . . . . . . . . 1 . 1 . . . Patrol Navigation 2 | . . . . . . . . . . . . . . . . . . . 1 . 1 . . . Derelict Proto ID Bank 1 | . . . . 1 . . . . . . . . . . . . . . . . . . . . Fabricator Hacks 4 | . . . . . . . . . . 2 . 2 . . . . . . . . . . . . Load Schematic 2 | . . . . . . . . . . 1 . 1 . . . . . . . . . . . . Build 2 | . . . . . . . . . . 1 . 1 . . . . . . . . . . . . Repair Station Hacks 31 | . 4 2 . . . 2 . 6 . 6 . 2 . . . . . . . 9 . . . . Scan Component 17 | . 2 1 . . . 1 . 4 . 3 . 1 . . . . . . . 5 . . . . Repair 14 | . 2 1 . . . 1 . 2 . 3 . 1 . . . . . . . 4 . . . . Recycling Unit Hacks 4 | . 1 1 . . . 1 . . . . . . . . . . . 1 . . . . . . Retrieve Components 4 | . 1 1 . . . 1 . . . . . . . . . . . 1 . . . . . . Scanalyzer 13 | . . . . . . 2 . 5 . 4 . 2 . . . . . . . . . . . . Insert Component 7 | . . . . . . 1 . 3 . 2 . 1 . . . . . . . . . . . . Analyze 6 | . . . . . . 1 . 2 . 2 . 1 . . . . . . . . . . . . Garrison Access Hacks 11 | . . . . . . 1 . 1 . 2 . 1 . 2 . 1 . 1 . 1 . . 1 . Unlock Access 8 | . . . . . . 1 . 1 . 1 . 1 . 1 . 1 . 1 . 1 . . . . Seal Access 1 | . . . . . . . . . . 1 . . . . . . . . . . . . . . Coupler Status 2 | . . . . . . . . . . . . . . 1 . . . . . . . . 1 . Unauthorized Hacks 29 | . 4 6 . . . 4 . 3 . 5 . 3 . . . 2 . 1 . . . . 1 . Terminals 24 | . 3 6 . . . 3 . 3 . 3 . 3 . . . 2 . 1 . . . . . . Assimilate 3 | . . 1 . . . . . . . 1 . 1 . . . . . . . . . . . . Botnet 14 | . 2 3 . . . 2 . 2 . 2 . 1 . . . 1 . 1 . . . . . . Operators 7 | . 1 2 . . . 1 . 1 . . . 1 . . . 1 . . . . . . . . Fabricators 2 | . . . . . . . . . . 2 . . . . . . . . . . . . . . Prioritize 1 | . . . . . . . . . . 1 . . . . . . . . . . . . . . Haulers 1 | . . . . . . . . . . 1 . . . . . . . . . . . . . . Repair Stations . | . . . . . . . . . . . . . . . . . . . . . . . . . Recycling Units 2 | . 1 . . . . 1 . . . . . . . . . . . . . . . . . . Reject 1 | . . . . . . 1 . . . . . . . . . . . . . . . . . . Tunnel 1 | . 1 . . . . . . . . . . . . . . . . . . . . . . . Scanalyzers . | . . . . . . . . . . . . . . . . . . . . . . . . . Garrison Access 1 | . . . . . . . . . . . . . . . . . . . . . . . 1 . Restock 1 | . . . . . . . . . . . . . . . . . . . . . . . 1 . Data Cores Recovered . | . . . . . . . . . . . . . . . . . . . . . . . . . Used . | . . . . . . . . . . . . . . . . . . . . . . . . . Hacking Detections 68 | . 5 9 . . . 6 2 7 1 9 2 5 3 1 2 2 1 2 2 1 3 . 4 1 Full Trace Events 19 | . . 3 . . . . 1 2 1 3 1 2 1 . 1 2 . . . . . . 2 . Feedback Events 1 | . . . . . . . . . . . . . 1 . . . . . . . . . . . Corruption 1 | . . . . . . . . . . . . . 1 . . . . . . . . . . . Feedback Blocked . | . . . . . . . . . . . . . . . . . . . . . . . . . Robot Schematics Acquired . | . . . . . . . . . . . . . . . . . . . . . . . . . Robots Built . | . . . . . . . . . . . . . . . . . . . . . . . . . Authchips . | . . . . . . . . . . . . . . . . . . . . . . . . . Time . | . . . . . . . . . . . . . . . . . . . . . . . . . Total Robot Build Rating . | . . . . . . . . . . . . . . . . . . . . . . . . . Part Schematics Acquired 7 | . . 2 . . . 1 . 2 . 2 . . . . . . . . . . . . . . Parts Built 2 | . . . . . . . . . . 1 . 1 . . . . . . . . . . . . Authchips . | . . . . . . . . . . . . . . . . . . . . . . . . . Time 61 | . . . . . . . . . . 25 . 36 . . . . . . . . . . . . Total Part Build Rating 4 | . . . . . . . . . . 1 . 3 . . . . . . . . . . . . Parts Repaired 13 | . 2 1 . . . 1 . 2 . 3 . . . . . . . . . 4 . . . . Time 747 | . 52 26 . . . 38 . 85 . 150 . 61 . . . . . . . 335 . . . . Parts Recycled . | . . . . . . . . . . . . . . . . . . . . . . . . . Recycled Matter . | . . . . . . . . . . . . . . . . . . . . . . . . . Retrieved Matter . | . . . . . . . . . . . . . . . . . . . . . . . . . Retrieved Components 30 | . 10 10 . . . . . . . . . . . . . . . 10 . . . . . . Parts Scanalyzed 6 | . . . . . . 1 . 3 . 2 . . . . . . . . . . . . . . Part Schematics Acquired 5 | . . . . . . 1 . 2 . 2 . . . . . . . . . . . . . . Parts Damaged . | . . . . . . . . . . . . . . . . . . . . . . . . . Bothacking | -11 -10 -9 -9 -9 -8 -8 -8 -8 -8 -7 -7 -7 -7 -6 -6 -5 -5 -4 -4 -3 -3 -2 -1 -1 ------------ Run | Yrd Mat Mat Min Exi Min Mat Gar Mat Gar Fac Gar Fac Gar Fac Gar Fac Gar Fac Gar Res Gar Res Acc Com Used RIF Installer 11 | . . . . . . . 2 . 1 . 1 . 1 . 1 . 2 . 2 . 1 . . . Code Merge 1 | . . . . . . . . . . . . . . . . . . . 1 . . . . . Command Fork 2 | . . . . . . . . . 1 . . . . . . . 1 . . . . . . . Threat Obfuscator 1 | . . . . . . . . . . . . . . . 1 . . . . . . . . . Signal Jammer 1 | . . . . . . . . . . . . . 1 . . . . . . . . . . . Robot Detection 1 | . . . . . . . . . . . . . . . . . . . 1 . . . . . Watcher Feeds 1 | . . . . . . . . . . . 1 . . . . . . . . . . . . . Patrol Navigation 1 | . . . . . . . 1 . . . . . . . . . . . . . . . . . Autooverride 1 | . . . . . . . . . . . . . . . . . . . . . 1 . . . Crosswire 1 | . . . . . . . . . . . . . . . . . 1 . . . . . . . Robots Hacked 135 | . . . . . . . . 2 . 2 1 3 9 1 14 5 17 12 14 14 11 10 19 1 Non-combat 24 | . . . . . . . . 2 . 2 . 3 . . . 2 . 3 . 6 . 3 2 1 Combat 111 | . . . . . . . . . . . 1 . 9 1 14 3 17 9 14 8 11 7 17 . Autooverrided 7 | . . . . . . . . . . . . . . . . . . . . . 1 1 5 . Robot Hacks Applied 151 | . . . . . . . . 6 . 7 1 5 9 1 14 9 17 20 14 14 10 9 14 1 parse_system 3 | . . . . . . . . . . 1 . 1 . . . . 1 . . . . . . . no_distress 2 | . . . . . . . . 1 . . . 1 . . . . . . . . . . . . find_chute 1 | . . . . . . . . . . 1 . . . . . . . . . . . . . . drop_inventory 6 | . . . . . . . . . . . . . . . . . . 1 . 3 . 2 . . check_alert 1 | . . . . . . . . 1 . . . . . . . . . . . . . . . . purge_threat 23 | . . . . . . . . 3 . 3 . 3 . . . 5 . 8 . . . . . 1 locate_traps 1 | . . . . . . . . . . . . . . . . . . 1 . . . . . . summon_haulers 1 | . . . . . . . . . . 1 . . . . . . . . . . . . . . recall_investigation 1 | . . . . . . . . . . 1 . . . . . . . . . . . . . . map_route 2 | . . . . . . . . . . . . . . . . . . 1 . 1 . . . . amplify_resonance 18 | . . . . . . . . . . . . . 5 . 1 2 4 . 2 . . 1 3 . reboot_system 1 | . . . . . . . . . . . . . . . 1 . . . . . . . . . go_dormant 1 | . . . . . . . . . . . . . . . . . . 1 . . . . . . streamctrl_low 1 | . . . . . . . . . . . . . . . . . . . . . . 1 . . formatsys_low 3 | . . . . . . . . . . . . . . . . 1 . . . 1 . . 1 . formatsys_high 84 | . . . . . . . . 1 . . 1 . 4 1 12 1 11 8 12 9 9 5 10 . formatsys_deep 2 | . . . . . . . . . . . . . . . . . 1 . . . 1 . . . Relay Couplers Released 100 | . . . . . . . . . . . 10 . 19 . 16 . 28 . 15 . 11 . 1 . Machine Destruction 96 | . . . . . . . . . . . 10 . 19 . 16 . 24 . 15 . 11 . 1 . Programmers 4 | . . . . . . . . . . . . . . . . . 4 . . . . . . . Attached 60 | . . . . . . . 1 2 . 1 1 2 6 1 11 1 16 4 6 1 3 1 3 . Crosswired 24 | . . . . . . . . . . . . . . . . . 8 . 5 . 10 . 1 . Merged Code Value 290 | . . . . . . . . . . . . . . . . . . . 128 . 162 . . . Fabnet Peak Effective % . | . . . . . . . . . . . . . . . . . . . . . . . . . Robots Rewired 12 | . . . . . . . 3 . . . 3 . 2 . 1 . 3 . . . . . . . Allies Hacked 15 | . . . . . . . . . . 1 . . . . . . . . 1 3 2 4 4 . Hacks Repelled . | . . . . . . . . . . . . . . . . . . . . . . . . . Allies | -11 -10 -9 -9 -9 -8 -8 -8 -8 -8 -7 -7 -7 -7 -6 -6 -5 -5 -4 -4 -3 -3 -2 -1 -1 -------- Run | Yrd Mat Mat Min Exi Min Mat Gar Mat Gar Fac Gar Fac Gar Fac Gar Fac Gar Fac Gar Res Gar Res Acc Com Total Allies 161 | . . 1 . . . . 3 1 . 1 4 1 9 1 16 2 22 12 21 14 22 10 21 . Largest Group 25 | . . 1 1 1 1 1 3 1 . 1 4 1 7 7 12 9 10 12 11 12 22 25 7 1 Highest-Rated Group 1222 | . . 10 10 10 10 10 90 19 . 26 145 26 253 320 546 468 449 559 605 573 1052 1222 380 65 Highest-Rated Ally 178 | . . 10 10 10 10 10 39 19 . 26 43 26 80 90 148 148 148 146 130 65 65 178 65 65 Total Orders 16 | . . . 4 . . . . . . . . . 1 . 6 . 2 . . . 1 1 1 . STAY 3 | . . . 2 . . . . . . . . . 1 . . . . . . . . . . . ROAM 4 | . . . . . . . . . . . . . . . 3 . 1 . . . . . . . FOLLOW 6 | . . . 2 . . . . . . . . . . . 3 . 1 . . . . . . . AID 2 | . . . . . . . . . . . . . . . . . . . . . 1 . 1 . DROP 1 | . . . . . . . . . . . . . . . . . . . . . . 1 . . Ally Attacks 936 | . . . . . . . 19 . . . 5 . 38 31 125 48 114 50 88 91 76 178 73 . Total Damage 30351 | . . . . . . . 339 . . . 164 . 650 806 4194 1771 3826 1501 2834 2668 2694 6624 2280 . Kills 166 | . . . . . . . . . . . 1 . 12 5 19 10 30 7 20 13 15 30 4 . Allies Corrupted 9 | . . . . . . . . . . . . . . . . . . 3 . 1 1 2 2 . Allies Melted 1 | . . . . . . . . . . . . . . . . . 1 . . . . . . . Intel | -11 -10 -9 -9 -9 -8 -8 -8 -8 -8 -7 -7 -7 -7 -6 -6 -5 -5 -4 -4 -3 -3 -2 -1 -1 ------- Run | Yrd Mat Mat Min Exi Min Mat Gar Mat Gar Fac Gar Fac Gar Fac Gar Fac Gar Fac Gar Res Gar Res Acc Com Robot Analysis Total 4 | . 2 2 . . . . . . . . . . . . . . . . . . . . . . Derelict Logs Recovered 2 | . . . 2 . . . . . . . . . . . . . . . . . . . . . Drone Launches . | . . . . . . . . . . . . . . . . . . . . . . . . . Drone Recoveries . | . . . . . . . . . . . . . . . . . . . . . . . . . Exploration | -11 -10 -9 -9 -9 -8 -8 -8 -8 -8 -7 -7 -7 -7 -6 -6 -5 -5 -4 -4 -3 -3 -2 -1 -1 ------------- Run | Yrd Mat Mat Min Exi Min Mat Gar Mat Gar Fac Gar Fac Gar Fac Gar Fac Gar Fac Gar Res Gar Res Acc Com Turns Passed 30560 | 75 1344 2007 938 577 339 2133 2279 1623 1229 1477 2546 1693 1324 157 1684 296 2300 720 1155 1286 1040 858 1041 439 Spaces Moved 15787 | 42 607 962 540 358 207 756 1097 823 735 883 1078 907 799 97 918 145 1191 445 697 564 633 519 558 226 Core 3 | 3 . . . . . . . . . . . . . . . . . . . . . . . . Treads 4517 | 39 607 962 540 358 207 756 424 . . . 586 38 . . . . . . . . . . . . Legs . | . . . . . . . . . . . . . . . . . . . . . . . . . Wheels 11267 | . . . . . . . 673 823 735 883 492 869 799 97 918 145 1191 445 697 564 633 519 558 226 Hover . | . . . . . . . . . . . . . . . . . . . . . . . . . Flight . | . . . . . . . . . . . . . . . . . . . . . . . . . Fastest Speed 50 | 50 160 160 160 160 160 160 105 110 110 110 125 118 129 129 129 175 138 121 130 130 130 130 130 130 Average Speed 149 | 152 175 163 160 160 160 222 156 113 119 121 189 139 129 129 152 175 147 134 130 130 130 134 149 151 Slowest Speed 270 | 160 240 240 160 160 160 240 240 135 145 125 240 240 129 129 210 175 240 175 130 130 130 150 170 270 Overloaded Moves . | . . . . . . . . . . . . . . . . . . . . . . . . . Propulsion Burnouts . | . . . . . . . . . . . . . . . . . . . . . . . . . Robots Hopped . | . . . . . . . . . . . . . . . . . . . . . . . . . Cave-ins Triggered 2 | . . . . . . . . . . . . . . . . . . . . . . . 1 1 Exploration Rate (%) 53 | 4 90 81 98 71 38 59 82 51 74 30 80 31 96 3 96 4 92 14 81 16 89 25 23 12 Regions Visited 24 Branch Regions 4 Pre-discovered Areas 1 | . 1 . . . . . . . . . . . . . . . . . . . . . . . Known Exits Taken 9 | . . 1 . . . 1 . 1 . 1 . 1 . 1 . 1 . 1 . 1 . . . . Unknown Exits Taken 7 | 1 1 . 1 1 1 . . . . . . . . . . . . . . . . 1 1 . Scrap Searched 1 | . . . 1 . . . . . . . . . . . . . . . . . . . . . Spaces Dug 133 | . . . . . . 22 2 2 12 3 36 5 . . . 1 8 . 6 . 1 3 22 10 Terrain Destroyed 574 | . . 18 . . . 44 4 20 34 3 53 87 . . 4 4 17 12 16 10 8 133 90 17 Melee 33 | . . . . . . . . 2 11 3 12 5 . . . . . . . . . . . . Projectile 177 | . . . . . . 19 4 . 3 . 12 11 . . 4 4 17 12 16 10 8 13 27 17 AOE 364 | . . 18 . . . 25 . 18 20 . 29 71 . . . . . . . . . 120 63 . Terrain Rammed . | . . . . . . . . . . . . . . . . . . . . . . . . . Walls Destroyed . | . . . . . . . . . . . . . . . . . . . . . . . . . Machines Disabled . | . . . . . . . . . . . . . . . . . . . . . . . . . Actions | -11 -10 -9 -9 -9 -8 -8 -8 -8 -8 -7 -7 -7 -7 -6 -6 -5 -5 -4 -4 -3 -3 -2 -1 -1 --------- Run | Yrd Mat Mat Min Exi Min Mat Gar Mat Gar Fac Gar Fac Gar Fac Gar Fac Gar Fac Gar Res Gar Res Acc Com Total 21065 | 50 799 1241 583 362 213 1057 1475 1433 944 1240 1423 1188 1000 121 1108 178 1563 565 882 1088 819 660 754 319 Wait 2150 | . 113 113 18 . 4 136 66 485 45 253 81 148 43 1 35 7 74 12 40 361 50 23 19 23 Move 15768 | 41 606 961 539 357 206 756 1096 822 734 883 1077 907 798 97 917 145 1190 444 696 563 632 518 557 226 Hop . | . . . . . . . . . . . . . . . . . . . . . . . . . Pick Up 239 | 3 14 18 1 3 . 12 21 12 1 18 12 8 8 4 14 1 24 10 7 18 10 12 7 1 Fast Attach 165 | 6 6 16 2 . . 18 7 14 3 12 8 5 8 1 8 . 13 13 4 3 4 2 9 3 Attach 108 | . . 2 1 . . 2 10 3 4 4 11 6 1 4 6 3 7 7 8 4 5 2 8 10 Detach 27 | . 2 1 . . . 3 1 1 . 3 4 4 . . 1 . . 1 3 2 1 . . . Swap 258 | . 5 11 . 1 . 13 28 13 19 6 20 17 11 3 22 2 29 7 9 11 5 21 4 1 Drop 269 | . 8 30 3 1 . 27 19 25 3 17 10 12 11 3 14 . 20 18 6 11 17 7 6 1 Fire 1480 | . 43 85 17 . . 90 175 35 84 31 102 74 29 8 65 20 131 51 68 52 51 73 143 53 Melee 96 | . . . . . . . 2 21 19 12 18 7 17 . . . . . . . . . . . Ram 1 | . . . . . . . . 1 . . . . . . . . . . . . . . . . Kick . | . . . . . . . . . . . . . . . . . . . . . . . . . Crush 11 | . 2 4 2 . 3 . . . . . . . . . . . . . . . . . . . Escape Stasis 288 | . . . . . . . 34 . 32 . 6 . 48 . 8 . 32 . 32 56 40 . . . Rewire 152 | . . . . . . . 16 1 . 1 71 . 11 . 5 . 24 2 6 7 4 2 1 1 Trap . | . . . . . . . . . . . . . . . . . . . . . . . . . Miscellaneous 53 | . . . . . . . . . . . 3 . 15 . 13 . 19 . 3 . . . . . Route ------- -11/Scrapyard -10/Materials (discovered 5 exits: *Mat x3 / [*Min x2]) -9/Materials (discovered 3 exits: *Mat x2 / *Min) -9/Mines (discovered 3 exits: *Mat x2 / *Exi) -9/Exiles (discovered 2 exits: [*Min x2]) -8/Mines -8/Materials (discovered 4 exits: *Fac x2 / *Sto / Gar) -8/Garrison (discovered 3 exits: *Mat x3) -8/Materials (discovered 4 exits: *Fac / *Sto x2 / Gar) -8/Garrison (discovered 3 exits: *Fac x3) -7/Factory (discovered 2 exits: *Fac / Gar) -7/Garrison (discovered 4 exits: *Fac x4) -7/Factory -7/Garrison (discovered 3 exits: *Fac x3) -6/Factory -6/Garrison (discovered 3 exits: *Fac x3) -5/Factory -5/Garrison (discovered 3 exits: *Fac x3) -4/Factory (discovered 2 exits: [*Upp] / Gar) -4/Garrison (discovered 3 exits: *Res x3) -3/Research -3/Garrison (discovered 3 exits: [*Res x3]) -2/Research (discovered 2 exits: *Acc / [*Tes]) -1/Access -1/Command History --------- Turn | Location | Event 16 | -11/Scrapyard | Discovered new exit (range 15) 76 | -11/Scrapyard | Entered Materials 132 | -10/Materials | Discovered new exit (range 12) 281 | -10/Materials | Discovered new exit (range 8) 308 | -10/Materials | Build established: Mutant 557 | -10/Materials | Discovered new exit (range 3) 773 | -10/Materials | Repaired Lgt. Cannon 800 | -10/Materials | Repaired Lgt. Treads 847 | -10/Materials | Discovered new exit (range 7) 1140 | -10/Materials | Destroyed 7 combat bots 1317 | -10/Materials | Discovered new exit (range 15) 1420 | -10/Materials | Entered another Materials area 1420 | -9/Materials | Evolved 2 slots: Propulsion x1, Utility x1 2006 | -9/Materials | Discovered new exit (range 13) 2069 | -9/Materials | Repaired Lgt. Cannon 2128 | -9/Materials | Build established: Scavenger-Mutant 2491 | -9/Materials | Identified exit to Mines 2520 | -9/Materials | Build established: Mutant 2640 | -9/Materials | Discovered new exit (range 14) 3263 | -9/Materials | Discovered new exit (range 15) 3427 | -9/Materials | Entered Mines 3427 | -9/Mines | Accompanied by 1 ally 3858 | -9/Mines | Discovered new exit (range 2) 3860 | -9/Mines | Learned Materials garrison access intel 3860 | -9/Mines | Discovered new exit (range 8) 3880 | -9/Mines | Joined a pair of Derelicts in attacking an 0b10 outpost 3983 | -9/Mines | Deemed a non-threat by the Exiles lab entrance 3983 | -9/Mines | Discovered new exit (range 5) 4005 | -9/Mines | Found the Drone Emporium 4055 | -9/Mines | Found a hidden stash of uninstalled traps 4365 | -9/Mines | Entered Exiles 4365 | -9/Exiles | Accompanied by 1 ally 4386 | -9/Exiles | Discovered new exit (range 15) 4405 | -9/Exiles | Met 8R-AWN 4429 | -9/Exiles | Met EX-HEX 4550 | -9/Exiles | Met EX-DEC 4715 | -9/Exiles | Met EX-BIN 4734 | -9/Exiles | Aligned with FarCom system 4735 | -9/Exiles | Given EX-Vault access code 4772 | -9/Exiles | Opened EX-Vault 4787 | -9/Exiles | Found Gui. Plasma Cannon 4818 | -9/Exiles | Warned to stay clear of 0b10 Research branches 4929 | -9/Exiles | Discovered new exit (range 10) 4942 | -9/Exiles | Left Exiles lab with Gui. Plasma Cannon 4942 | -9/Exiles | Entered Mines 4942 | -8/Mines | Accompanied by 1 ally 4954 | -8/Mines | Discovered new exit (range 12) 5281 | -8/Mines | Entered Materials 5281 | -8/Materials | Accompanied by 1 ally 5281 | -8/Materials | Evolved 2 slots: Utility x1, Weapon x1 5282 | -8/Materials | Identified exit to Storage 5283 | -8/Materials | Loaded intel: 1 garrison access location 5648 | -8/Materials | Discovered new exit (range 14) 5684 | -8/Materials | Build established: Tank 5740 | -8/Materials | Destroyed 7 combat bots 6233 | -8/Materials | Identified exit to Factory 6697 | -8/Materials | Repaired Hardlight Generator 7057 | -8/Materials | Discovered exit to Factory (range 8) 7414 | -8/Materials | Identified exit to Garrison 7414 | -8/Materials | Entered Garrison 7516 | -8/Garrison | Installed Relay Interface Framework 7614 | -8/Garrison | Triggered checkpoint 7733 | -8/Garrison | Triggered checkpoint 7783 | -8/Garrison | Triggered checkpoint 7897 | -8/Garrison | Triggered checkpoint 8035 | -8/Garrison | Discovered new exit (range 12) 8125 | -8/Garrison | Identified exit to Materials 8605 | -8/Garrison | Lost 3 parts (1n2u) 8642 | -8/Garrison | Triggered checkpoint 8814 | -8/Garrison | Discovered exit to Materials (range 11) 8838 | -8/Garrison | Triggered checkpoint 8915 | -8/Garrison | Build established: Scavenger-Skirmisher 8998 | -8/Garrison | Core integrity fell below 50% 9024 | -8/Garrison | Discovered exit to Materials (range 15) 9142 | -8/Garrison | Triggered checkpoint 9409 | -8/Garrison | Expanded RIF knowledge: Patrol Navigation 9526 | -8/Garrison | Build established: Bothacker-Skirmisher 9580 | -8/Garrison | Spotted B-75 Beast 9623 | -8/Garrison | Destroyed B-75 Beast 9645 | -8/Garrison | Lost 3 parts (1n2w) 9693 | -8/Garrison | Entered Materials 9836 | -8/Materials | Repaired Hrd. Light Armor Plating 9850 | -8/Materials | System corruption reached 10% 9995 | -8/Materials | Identified exit to Garrison 10076 | -8/Materials | Discovered exit to Storage (range 12) 10179 | -8/Materials | Discovered exit to Factory (range 14) 10829 | -8/Materials | Repaired Corrupted Hacking Suite 11098 | -8/Materials | Discovered exit to Storage (range 15) 11316 | -8/Materials | Entered Garrison 11391 | -8/Garrison | Expanded RIF knowledge: Command Fork 11405 | -8/Garrison | Triggered checkpoint 11551 | -8/Garrison | Triggered checkpoint 11617 | -8/Garrison | Destroyed 8 combat bots 11658 | -8/Garrison | Triggered checkpoint 11860 | -8/Garrison | Discovered exit to Factory (range 14) 11902 | -8/Garrison | Triggered checkpoint 12083 | -8/Garrison | Core integrity fell below 20% 12120 | -8/Garrison | Triggered checkpoint 12195 | -8/Garrison | Discovered exit to Factory (range 14) 12289 | -8/Garrison | Spotted B-75 Beast 12290 | -8/Garrison | Spotted B-75 Beast 12305 | -8/Garrison | Triggered checkpoint 12406 | -8/Garrison | Triggered checkpoint 12530 | -8/Garrison | Discovered exit to Factory (range 14) 12545 | -8/Garrison | Entered Factory 12545 | -7/Factory | Evolved 2 slots: Utility x2 12815 | -7/Factory | Fabricated Huge Storage Unit (x1) 12856 | -7/Factory | Build established: Bothacker-Gunner 13006 | -7/Factory | Repaired Enh. Autogun 13494 | -7/Factory | Repaired Enh. Autogun 13556 | -7/Factory | Repaired Prc. Beam Rifle 13676 | -7/Factory | Discovered new exit (range 3) 13862 | -7/Factory | Build established: Hacker-Gunner 13968 | -7/Factory | Garrison activated, responded to threat 14022 | -7/Factory | Identified exit to Garrison 14022 | -7/Factory | Entered Garrison 14168 | -7/Garrison | Triggered checkpoint 14316 | -7/Garrison | Triggered checkpoint 14436 | -7/Garrison | Destroyed 9 combat bots 14464 | -7/Garrison | Triggered checkpoint 14584 | -7/Garrison | Build established: Tank 14628 | -7/Garrison | Discovered new exit (range 9) 14885 | -7/Garrison | Lost 6 parts (1n2u3w) 15082 | -7/Garrison | Triggered checkpoint 15094 | -7/Garrison | Build established: Gunner 15222 | -7/Garrison | Expanded RIF knowledge: Watcher Feeds 15250 | -7/Garrison | Discovered new exit (range 5) 15292 | -7/Garrison | Identified exit to Factory 15360 | -7/Garrison | Triggered checkpoint 15530 | -7/Garrison | Discovered exit to Factory (range 10) 15630 | -7/Garrison | Triggered checkpoint 15661 | -7/Garrison | Discovered exit to Factory (range 5) 15966 | -7/Garrison | Triggered checkpoint 16072 | -7/Garrison | Garrison Relay disabled 16275 | -7/Garrison | Garrison Relay disabled 16568 | -7/Garrison | Entered Factory 16639 | -7/Factory | Build established: Botlord-Skirmisher 17155 | -7/Factory | Core integrity fell below 50% 17580 | -7/Factory | Fabricated Hacking Suite (x1) 17768 | -7/Factory | First assault squad dispatched 17924 | -7/Factory | Destroyed 9 combat bots 18260 | -7/Factory | Identified exit to Garrison 18261 | -7/Factory | Entered Garrison 18261 | -7/Garrison | Accompanied by 1 ally 18293 | -7/Garrison | Expanded RIF knowledge: Signal Jamming 18407 | -7/Garrison | Triggered checkpoint 18458 | -7/Garrison | Garrison Relay disabled 18505 | -7/Garrison | Garrison Relay disabled 18619 | -7/Garrison | Triggered checkpoint 18694 | -7/Garrison | Triggered checkpoint 18724 | -7/Garrison | Discovered new exit (range 12) 18787 | -7/Garrison | Garrison Relay disabled 18859 | -7/Garrison | Triggered checkpoint 18889 | -7/Garrison | Triggered checkpoint 18929 | -7/Garrison | Triggered checkpoint 18971 | -7/Garrison | Garrison Relay disabled 19049 | -7/Garrison | Discovered new exit (range 12) 19074 | -7/Garrison | Build established: Botlord-Mutant 19516 | -7/Garrison | Found embedded Infiltrators 19533 | -7/Garrison | Garrison Relay disabled 19563 | -7/Garrison | Discovered new exit (range 8) 19585 | -7/Garrison | Entered Factory 19585 | -6/Factory | Accompanied by 6 allies 19585 | -6/Factory | Evolved 2 slots: Utility x2 19664 | -6/Factory | Garrison activated, responded to threat 19700 | -6/Factory | Lost 3 allies 19742 | -6/Factory | Identified exit to Garrison 19742 | -6/Factory | Entered Garrison 19742 | -6/Garrison | Accompanied by 4 allies 19804 | -6/Garrison | Triggered checkpoint 19830 | -6/Garrison | Garrison Relay disabled 19935 | -6/Garrison | Triggered checkpoint 19944 | -6/Garrison | Triggered checkpoint 19950 | -6/Garrison | Spotted B-75 Beast 19964 | -6/Garrison | Destroyed B-75 Beast 20018 | -6/Garrison | Triggered checkpoint 20051 | -6/Garrison | Garrison Relay disabled 20072 | -6/Garrison | Rescued a captive Derelict 20073 | -6/Garrison | Rescued a captive Derelict 20097 | -6/Garrison | Build established: Botlord-Skirmisher 20154 | -6/Garrison | Discovered new exit (range 12) 20187 | -6/Garrison | Expanded RIF knowledge: Threat Obfuscation 20232 | -6/Garrison | Triggered checkpoint 20315 | -6/Garrison | Found Adv. Powered Armor 20318 | -6/Garrison | Spotted B-75 Beast 20336 | -6/Garrison | Allies destroyed B-75 Beast 20366 | -6/Garrison | Lost 3 allies 20461 | -6/Garrison | Garrison Relay disabled 20532 | -6/Garrison | Discovered new exit (range 12) 20604 | -6/Garrison | Triggered checkpoint 20645 | -6/Garrison | Garrison Relay disabled 20774 | -6/Garrison | Triggered checkpoint 20850 | -6/Garrison | Triggered checkpoint 20887 | -6/Garrison | P-60 Hacker assimilated allied PL-EY9(g) 20929 | -6/Garrison | Lost 3 allies 21127 | -6/Garrison | Discovered new exit (range 8) 21139 | -6/Garrison | Spotted B-75 Beast 21146 | -6/Garrison | Assimilated Beast 5a with formatsys_high 21176 | -6/Garrison | Rewired B-90 Cyclops 21426 | -6/Garrison | Entered Factory 21426 | -5/Factory | Accompanied by 7 allies 21426 | -5/Factory | Evolved 2 slots: Utility x2 21616 | -5/Factory | Build established: Botlord-Tank 21722 | -5/Factory | Identified exit to Garrison 21722 | -5/Factory | Entered Garrison 21722 | -5/Garrison | Accompanied by 8 allies 21830 | -5/Garrison | Triggered checkpoint 21910 | -5/Garrison | Garrison Relay disabled 21952 | -5/Garrison | Garrison Relay disabled 22023 | -5/Garrison | Allies destroyed Beast 5a 22058 | -5/Garrison | Triggered checkpoint 22148 | -5/Garrison | Spotted B-75 Beast 22152 | -5/Garrison | Triggered checkpoint 22166 | -5/Garrison | Triggered checkpoint 22166 | -5/Garrison | P-70 Sage assimilated allied Sentinel 6c 22167 | -5/Garrison | Allies destroyed B-75 Beast 22207 | -5/Garrison | Lost 4 allies 22217 | -5/Garrison | Found Quantum Capacitor 22243 | -5/Garrison | Triggered checkpoint 22247 | -5/Garrison | Assimilated ARC 6a with formatsys_deep 22255 | -5/Garrison | Triggered checkpoint 22464 | -5/Garrison | Discovered new exit (range 9) 22540 | -5/Garrison | Triggered checkpoint 22569 | -5/Garrison | Garrison Relay disabled 22769 | -5/Garrison | Garrison Relay disabled 22802 | -5/Garrison | Rescued a captive Derelict 22870 | -5/Garrison | Rescued HV-R5K 22974 | -5/Garrison | Triggered checkpoint 23033 | -5/Garrison | Build established: Botlord-Skirmisher 23081 | -5/Garrison | Discovered new exit (range 11) 23128 | -5/Garrison | Triggered checkpoint 23145 | -5/Garrison | Garrison Relay disabled 23174 | -5/Garrison | Expanded RIF knowledge: Command Fork 23313 | -5/Garrison | Discovered new exit (range 11) 23408 | -5/Garrison | Triggered checkpoint 23466 | -5/Garrison | Expanded RIF knowledge: Crosswire 23497 | -5/Garrison | Lost 5 allies 23610 | -5/Garrison | Triggered checkpoint 23790 | -5/Garrison | Triggered checkpoint 23808 | -5/Garrison | Garrison Relay disabled 24022 | -5/Garrison | Entered Factory 24022 | -4/Factory | Accompanied by 9 allies (HV-R5K) 24022 | -4/Factory | Evolved 2 slots: Propulsion x1, Utility x1 24159 | -4/Factory | Lost 3 allies 24636 | -4/Factory | Lost 7 allies 24659 | -4/Factory | Garrison activated, responded to threat 24714 | -4/Factory | Identified exit to Garrison 24722 | -4/Factory | Discovered new exit (range 5) 24742 | -4/Factory | Entered Garrison 24742 | -4/Garrison | Accompanied by 5 allies (HV-R5K) 24774 | -4/Garrison | Rescued a captive Derelict 24778 | -4/Garrison | Rescued a captive Derelict 24850 | -4/Garrison | Lost 4 allies 24879 | -4/Garrison | Garrison Relay disabled 24920 | -4/Garrison | Expanded RIF knowledge: Robot Detection 24955 | -4/Garrison | Lost 4 allies 25095 | -4/Garrison | Triggered checkpoint 25107 | -4/Garrison | Spotted B-86 Titan 25124 | -4/Garrison | Triggered checkpoint 25125 | -4/Garrison | Triggered checkpoint 25130 | -4/Garrison | Allies destroyed B-86 Titan 25191 | -4/Garrison | Lost 7 allies 25229 | -4/Garrison | Build established: Botlord-Tank 25271 | -4/Garrison | Discovered new exit (range 12) 25283 | -4/Garrison | Expanded RIF knowledge: Code Merge 25306 | -4/Garrison | Triggered checkpoint 25326 | -4/Garrison | Garrison Relay disabled 25504 | -4/Garrison | Triggered checkpoint 25544 | -4/Garrison | Triggered checkpoint 25549 | -4/Garrison | Garrison Relay disabled 25592 | -4/Garrison | P-70 Sage assimilated allied Eye 7a 25775 | -4/Garrison | Discovered new exit (range 45) 25775 | -4/Garrison | Discovered new exit (range 22) 25775 | -4/Garrison | Discovered new exit (range 84) 25786 | -4/Garrison | Triggered checkpoint 25802 | -4/Garrison | Garrison Relay disabled 25897 | -4/Garrison | Entered Research 25897 | -3/Research | Accompanied by 10 allies 25897 | -3/Research | Evolved 2 slots: Power x1, Utility x1 26041 | -3/Research | Found Hellfire Missile Launcher 26206 | -3/Research | Repaired Energy Mantle 26270 | -3/Research | Repaired Quantum Capacitor 26383 | -3/Research | Repaired Broken Exp. Heat Sink 26448 | -3/Research | Repaired Centrium Wheel 26633 | -3/Research | Lost 3 allies 26691 | -3/Research | First assault squad dispatched 26747 | -3/Research | P-80 Master assimilated allied Veteran 7j 26829 | -3/Research | Identified exit to Garrison 26904 | -3/Research | P-80 Master assimilated allied Warden 8a 26912 | -3/Research | Garrison activated, responded to threat 26953 | -3/Research | Lost 4 allies 27183 | -3/Research | Entered Garrison 27183 | -3/Garrison | Accompanied by 7 allies 27435 | -3/Garrison | Triggered checkpoint 27444 | -3/Garrison | Assimilated ARC 8a with formatsys_deep 27455 | -3/Garrison | Triggered checkpoint 27463 | -3/Garrison | Triggered checkpoint 27507 | -3/Garrison | Lost 3 allies 27526 | -3/Garrison | Discovered new exit (range 12) 27565 | -3/Garrison | Triggered checkpoint 27603 | -3/Garrison | Garrison Relay disabled 27720 | -3/Garrison | Expanded RIF knowledge: Autooverride 27739 | -3/Garrison | Triggered checkpoint 27762 | -3/Garrison | Garrison Relay disabled 27855 | -3/Garrison | Discovered new exit (range 12) 27897 | -3/Garrison | Triggered checkpoint 27965 | -3/Garrison | Spotted B-86 Titan 27970 | -3/Garrison | Allies destroyed B-86 Titan 28038 | -3/Garrison | Discovered new exit (range 12) 28045 | -3/Garrison | Discovered new exit (range 53) 28045 | -3/Garrison | Discovered new exit (range 39) 28045 | -3/Garrison | Discovered new exit (range 16) 28085 | -3/Garrison | Triggered checkpoint 28113 | -3/Garrison | Garrison Relay disabled 28128 | -3/Garrison | Rescued a captive Derelict 28129 | -3/Garrison | Rescued a captive Derelict 28223 | -3/Garrison | Entered Research 28223 | -2/Research | Accompanied by 21 allies 28223 | -2/Research | Evolved 2 slots: Power x1, Utility x1 28257 | -2/Research | Found Prototype Device 28262 | -2/Research | Identified Adv. Kinecellerator 28473 | -2/Research | First assault squad dispatched 28503 | -2/Research | Found Quantum Capacitor 28596 | -2/Research | Lost 9 allies 28815 | -2/Research | Lost 8 allies 28833 | -2/Research | Discovered new exit (range 4) 28867 | -2/Research | Build established: Botlord-Gunner 29060 | -2/Research | Discovered new exit (range 15) 29071 | -2/Research | Lost 7 allies 29081 | -2/Research | Entered Access 29081 | -1/Access | Accompanied by 1 ally 29081 | -1/Access | Evolved 2 slots: Utility x2 29100 | -1/Access | Spotted B-99 Colossus 29415 | -1/Access | P-80 Master assimilated allied Enforcer 10a 29465 | -1/Access | Build established: Botlord-Tank 29484 | -1/Access | Lost 3 parts (3u) 29651 | -1/Access | Crushed by falling debris 29651 | -1/Access | System corruption reached 10% 29666 | -1/Access | Lost 8 allies 29831 | -1/Access | First assault squad dispatched 29947 | -1/Access | Build established: Botlord-Gunner 30058 | -1/Access | Garrison activated, responded to threat 30106 | -1/Access | Spotted B-99 Colossus 30109 | -1/Access | Spotted B-99 Colossus 30112 | -1/Access | Lost 8 allies 30120 | -1/Access | Discovered new exit (range 3) 30122 | -1/Access | Entered Command 30122 | -1/Command | Accompanied by 1 ally 30149 | -1/Command | Lost 3 parts (1p2u) 30349 | -1/Command | Build established: Botlord-Tank 30486 | -1/Command | Spotted Combat Programmer 30497 | -1/Command | Spotted Combat Programmer 30501 | -1/Command | Spotted M Guard 30501 | -1/Command | Spotted M Guard 30516 | -1/Command | Crushed by falling debris 30539 | -1/Command | Core integrity fell below 50% 30547 | -1/Command | Core integrity fell below 20% 30561 | -1/Command | Destroyed by Combat Programmer with EMDS Last Messages --------------- The unstable cave ceiling collapses. M Guard crushed by falling debris. The unstable cave ceiling collapses. EMDS Slug penetrates Earth. The unstable cave ceiling collapses. Penetrated by EMDS Slug. Quantum Capacitor destroyed. The unstable cave ceiling collapses. Combat Programmer resets Combat Programmer, system corruption cleaned. The unstable cave ceiling collapses. Combat Programmer crushed by falling debris. The unstable cave ceiling collapses. Quantum Reactor destroyed. Penetrated by EMDS Slug. The unstable cave ceiling collapses. EMDS Slug penetrates M Guard. Penetrated by EMDS Slug. Graphene Brace destroyed. Penetrated by EMDS Slug. Map ----- +----------------------------------------------------+ | ?????????????????????????????????????????????????? | | ?????????????????????????????????????????????????? | | ?????????????????????????????????????????????????? | | ?????????????????????????????????????????????????? | | ?????????????????????????????????????????????????? | | ?????????????????????????????????????????????????? | | ????????????????????????????#""??????????????????? | | ???????????????????????????? ??????????????????? | | ???????????????????????????# ??????????????????? | | ???????????????????????????# #?????????????????? | | ???????????????????????????# #?????????????????? | | ???????????????????????????# #?????????????????? | | ???????????????????????????# #?????????????????? | | ???????????????????????????# #?????????????????? | | ???????????????????????????# #?????????????????? | | ???????????????????????????# #?????????????????? | | ???????????????????????????# ###???????????????? | | ????????????????????????#### # ##??????????????? | | ???????????????????????## ###?????????????? | | ???????????????????????# # # # ###???????????? | | ????????????????????????# # # #???????????? | | ????????????????????????# #????????????? | | ????????????????????????# # #????????????? | | ????????????????????????# # # #????????????? | | ????????????????????????#Yp ##????????????? | | ????????????????????????#@Y # ##????????????? | | ????????????????????????# # ######?????????? | | ????????????????????????##p ;#" #####?##### | | ?????????????????????????# # # " !#?# # | | ?????????????????????????# ## ### !=### # | | ???????????????????????? !!%=! | | ??????????????????????? W [=!*! | | ????????????????????? [%* | | ????????????????????# | | ????????????????????# [ | | ????????????????????# ### ### W ### ### # | | ????????????????????#####??# #?# #?# #?# # | | ???????????????????????????#####?#####?#####?##### | | ?????????????????????????????????????????????????? | | ?????????????????????????????????????????????????? | | ?????????????????????????????????????????????????? | | ?????????????????????????????????????????????????? | | ?????????????????????????????????????????????????? | | ?????????????????????????????????????????????????? | | ?????????????????????????????????????????????????? | | ?????????????????????????????????????????????????? | | ?????????????????????????????????????????????????? | | ?????????????????????????????????????????????????? | | ?????????????????????????????????????????????????? | | ?????????????????????????????????????????????????? | +----------------------------------------------------+ Best States ------------- Heat Dissipation 135 Energy Generation 83 Energy Capacity 850 Matter Stores 300 Matter Capacity 300 Sight Range 16 Terrain Scan Density 110 Power Amplification 30 Additional Mass Support 9 Armor Coverage 625 Resistance: EM 20 Point Defense Rating 240 Weapon Cycling 20 Evasion (%) 40 Targeting Accuracy 8 Melee Accuracy 8 Core Analysis 6 Recoil Reduction 3 Energy Filtering 50 Offensive Hacking 30 Defensive Hacking 12 Relay Coupler Types 7 Relay Coupler Value 250 Authchip Count 1 Item Schematics ----------------- Huge Storage Unit | -9/Materials | Hacked Arm. Wheel | -9/Materials | Hacked Hacking Suite | -8/Materials | Scanalyzed Hyp. Gauss Cannon | -8/Materials | Scanalyzed Arm. Huge Wheel | -8/Materials | Scanalyzed Imp. Medium Armor Plating | -7/Factory | Scanalyzed Imp. Cooling System | -7/Factory | Scanalyzed Robot Schematics ------------------ None Fabricated ------------ Huge Storage Unit | x1 | -7/Factory Hacking Suite | x1 | -7/Factory Alien Tech Used ----------------- None Achievements -------------- None Challenges ------------ None Game ------ Seed CoolantRiotClaw Manual? 1 Play Time 05:44:11 Cumulative 522.8 hours Start 2024.07.26 @ 12:57:23 End 2024.07.27 @ 00:10:28 Sessions 33 Manual Loads 0 Difficulty Rogue Special Mode None Game No. 270 Rogue 270 Adventurer 0 Explorer 0 Win Type - Total 34 Types 22/2/3/3/1/1/1/1/0 Lore% 91 Gallery% 99 Achievement% 98 Wizard Run 0 Options --------- Layout 1 ASCII 0 Keyboard 0 Movement Numpad Keybinds 0 Fullscreen 1 Font 24/Smallcaps Map View 50x35 Zoom Use 0% Tactical HUD 1 Map Filters NONE Filters NONE Steam 1 RUN: a5fd624b-0d33-442c-ac30-632e88399408